bitfinex-derivatives/quotes_BNBF0:USTF0_20250710
["timestamp","ask_amount","ask_price","bid_price","bid_amount"]
[1752187531525,0.84306423,686.23,685.13,1.95823945]
[1752187531721,0.84306423,686.22,685.13,1.95823945]
[1752187532022,0.84306423,686.21,685.13,1.95823945]
[1752187532221,0.84306423,686.2,685.13,1.95823945]
[1752187532422,0.84306423,686.19,685.14,1.95823945]
[1752187532721,0.84306423,686.18,685.13,1.95823945]
[1752187532921,0.84306423,686.17,685.13,1.95823945]
[1752187533124,0.84306423,686.16,685.13,1.95823945]
[1752187533326,0.84306423,686.15,685.14,1.95823945]
[1752187533522,0.97691443,686.39,685.14,1.95823945]
[1752187533523,0.84306423,686.14,685.14,1.95823945]
[1752187533723,0.84306423,686.13,685.14,1.95823945]
[1752187533924,0.97691443,686.4,685.14,1.95823945]
[1752187534124,0.84375357,686.39,685.14,1.95823945]
[1752187534325,0.84375357,686.38,685.14,1.95823945]
[1752187534524,0.84375357,686.37,685.15,1.95823945]
[1752187534724,0.84375357,686.36,685.15,1.95823945]
[1752187534926,0.84375357,686.35,685.15,1.95823945]
[1752187535128,0.84375357,686.34,685.15,1.95823945]
[1752187535326,0.84375357,686.33,685.18,1.95823945]
[1752187535532,0.84375357,686.32,685.18,1.95823945]
[1752187535734,0.84375357,686.31,685.19,1.95823945]
[1752187536030,0.84375357,686.3,685.19,1.95823945]
[1752187536232,0.84375357,686.29,685.19,1.95823945]
[1752187536433,0.84375357,686.28,685.19,1.95823945]
[1752187536633,0.84375357,686.27,685.2,1.95823945]
[1752187536934,0.84375357,686.26,685.2,1.95823945]
[1752187537132,0.84375357,686.25,685.2,1.95823945]
[1752187537434,0.84375357,686.24,685.21,1.95823945]
[1752187537635,0.84375357,686.23,685.18,1.95823945]
[1752187537830,0.84375357,686.22,685.19,1.95823945]
[1752187538137,0.84375357,686.21,685.19,1.95823945]
[1752187538335,0.84375357,686.2,685.2,1.95823945]
[1752187538535,0.84375357,686.19,685.2,1.95823945]
[1752187538735,0.84375357,686.18,685.2,1.95823945]
[1752187538932,0.84375357,686.17,685.2,1.95823945]
[1752187539232,0.84375357,686.16,685.2,1.95823945]
[1752187539435,0.84375357,686.15,685.21,1.95823945]
[1752187539635,0.84375357,686.14,685.21,1.95823945]
[1752187539935,0.84375357,686.13,685.21,1.95823945]
[1752187540137,0.84375357,686.12,685.21,1.95823945]
[1752187540336,0.97691443,686.39,685.21,1.95823945]
[1752187540537,0.84505029,686.38,685.23,1.95823945]
[1752187540739,0.84505029,686.37,685.23,1.95823945]
[1752187540939,0.84505029,686.36,685.23,1.95823945]
[1752187541236,0.84505029,686.35,685.22,1.95823945]
[1752187541440,0.84505029,686.34,685.24,1.95823945]
[1752187541636,0.84505029,686.33,685.24,1.95823945]
[1752187541835,0.84505029,686.32,685.24,1.95823945]
[1752187542136,0.84505029,686.31,685.24,1.95823945]
[1752187542335,0.84505029,686.3,685.27,1.95823945]
[1752187542539,0.84505029,686.29,685.26,1.95823945]
[1752187542738,0.84505029,686.28,685.26,1.95823945]
[1752187542937,0.84505029,686.27,685.26,1.95823945]
[1752187543136,0.84505029,686.26,685.26,1.95823945]
[1752187543437,0.84505029,686.25,685.29,1.95823945]
[1752187543636,0.84505029,686.24,685.3,1.95823945]
[1752187543936,0.84505029,686.23,685.3,1.95823945]
[1752187544140,0.84505029,686.22,685.3,1.95823945]
[1752187544353,0.84505029,686.21,685.3,1.95823945]
[1752187544637,0.84505029,686.2,685.33,1.95823945]
[1752187544841,0.84505029,686.19,685.33,1.95823945]
[1752187545139,0.84505029,686.18,685.33,1.95823945]
[1752187545340,0.84505029,686.17,685.33,1.95823945]
[1752187545540,0.84505029,686.16,685.36,1.95823945]
[1752187545742,0.84505029,686.15,685.36,1.95823945]
[1752187545946,0.84505029,686.14,685.36,1.95823945]
[1752187546143,0.84505029,686.13,685.36,1.95823945]
[1752187546347,0.84505029,686.12,685.39,1.95823945]
[1752187546647,0.84505029,686.11,685.39,1.95823945]
[1752187546843,0.84505029,686.1,685.39,1.95823945]
[1752187547044,0.97691443,686.37,685.39,1.95823945]
[1752187547243,0.84723717,686.36,685.4,1.95823945]
[1752187547543,0.97691443,686.33,685.45,1.95823945]
[1752187547746,0.84723717,686.32,685.42,1.95823945]
[1752187547947,0.84723717,686.31,685.43,1.95823945]
[1752187548148,0.84723717,686.3,685.43,1.95823945]
[1752187548347,0.84723717,686.29,685.44,1.95823945]
[1752187548547,0.84723717,686.28,685.44,1.95823945]
[1752187548746,0.84723717,686.27,685.44,1.95823945]
[1752187548949,0.84723717,686.26,685.44,1.95823945]
[1752187549148,0.84723717,686.25,685.43,1.95823945]
[1752187549345,0.84723717,686.24,685.44,1.95823945]
[1752187549547,0.84723717,686.23,685.44,1.95823945]
[1752187549848,0.84723717,686.22,685.44,1.95823945]
[1752187550049,0.84723717,686.21,685.44,1.95823945]
[1752187550244,0.84723717,686.2,685.44,1.95823945]
[1752187550453,0.84723717,686.19,685.45,1.95823945]
[1752187550649,0.84723717,686.18,685.45,1.95823945]
[1752187550944,0.84723717,686.17,685.45,1.95823945]
[1752187551149,0.84723717,686.16,685.46,1.95823945]
[1752187551347,0.84723717,686.15,685.46,1.95823945]
[1752187551546,0.84723717,686.14,685.48,1.95823945]
[1752187551746,0.84723717,686.13,685.48,1.95823945]
[1752187552045,0.97691443,686.29,685.48,1.95823945]
[1752187552046,0.84723717,686.12,685.48,1.95823945]
[1752187552346,0.84723717,686.11,685.49,1.95823945]
[1752187552551,0.84723717,686.1,685.51,1.95823945]
[1752187552847,0.84723717,686.09,685.48,1.95823945]
[1752187553047,0.84723717,686.08,685.48,1.95823945]
[1752187553347,0.84723717,686.07,685.49,1.95823945]
[1752187553551,0.84723717,686.06,685.49,1.95823945]
[1752187553748,0.84723717,686.05,685.49,1.95823945]
[1752187553949,0.84723717,686.04,685.49,1.95823945]
[1752187554145,0.84723717,686.03,685.49,1.95823945]
[1752187554347,0.84723717,686.02,685.49,1.95823945]
[1752187554651,0.97691443,686.27,685.49,1.95823945]
[1752187554652,0.84723717,686.01,685.49,1.95823945]
[1752187554850,0.97691443,686.27,685.49,1.95823945]
[1752187555050,0.84970423,686.26,685.49,1.95823945]
[1752187555249,0.84970423,686.25,685.49,1.95823945]
[1752187555555,0.84970423,686.24,685.45,1.95823945]
[1752187555749,0.84970423,686.23,685.44,1.95823945]
[1752187555949,0.84970423,686.22,685.43,1.95823945]
[1752187556253,0.84970423,686.21,685.43,1.95823945]
[1752187556449,0.84970423,686.2,685.35,1.95823945]
[1752187556649,0.97691443,686.57,685.58,1.95823945]
[1752187556953,0.849526,686.56,685.58,1.95823945]
[1752187557148,0.849526,686.55,685.62,1.95823945]
[1752187557352,0.849526,686.54,685.59,1.95823945]
[1752187557549,0.849526,686.53,685.59,1.95823945]
[1752187557751,0.849526,686.52,685.6,3.60623945]
[1752187557950,0.849526,686.51,685.6,1.648]
[1752187558154,0.849526,686.5,685.6,1.648]
[1752187558351,0.849526,686.49,685.6,1.648]
[1752187558649,0.849526,686.48,685.6,1.648]
[1752187558851,0.849526,686.47,685.6,1.648]
[1752187559049,0.849526,686.46,685.6,1.648]
[1752187559254,0.849526,686.45,685.6,1.648]
[1752187559453,0.849526,686.44,685.6,1.648]
[1752187559752,0.849526,686.43,685.6,1.648]
[1752187559955,0.97691443,686.71,685.6,1.648]
[1752187559956,0.849526,686.42,685.6,1.648]
[1752187560255,0.849526,686.41,685.6,1.648]
[1752187560552,0.849526,686.4,685.6,1.648]
[1752187560753,0.849526,686.39,685.61,1.95823945]
[1752187560952,0.849526,686.38,685.61,1.95823945]
[1752187561153,0.849526,686.37,685.6,1.648]
[1752187561352,0.849526,686.36,685.6,1.648]
[1752187561654,0.849526,686.35,685.6,1.648]
[1752187561855,0.849526,686.34,685.6,1.648]
[1752187562054,0.849526,686.33,685.6,1.648]
[1752187562255,0.849526,686.32,685.6,1.648]
[1752187562456,0.849526,686.31,685.6,1.648]
[1752187562657,0.97691443,686.6,685.6,1.648]
[1752187562855,0.8475793,686.59,685.6,1.648]
[1752187563053,0.8475793,686.58,685.6,1.648]
[1752187563256,0.8475793,686.57,685.6,1.648]
[1752187563458,0.8475793,686.56,685.6,1.648]
[1752187563654,0.8475793,686.55,685.6,1.648]
[1752187563858,0.8475793,686.54,685.6,1.648]
[1752187564054,0.8475793,686.53,685.6,1.648]
[1752187564255,0.8475793,686.52,685.6,1.648]
[1752187564453,0.8475793,686.51,685.6,1.648]
[1752187564657,0.8475793,686.5,685.6,1.648]
[1752187564854,0.8475793,686.49,685.6,1.648]
[1752187565059,0.8475793,686.48,685.6,1.648]
[1752187565355,0.8475793,686.47,685.6,1.648]
[1752187565655,0.8475793,686.46,685.6,1.648]
[1752187565856,0.8475793,686.45,685.61,0.97748168]
[1752187566156,0.8475793,686.44,685.62,2.93572113]
[1752187566359,0.8475793,686.43,685.73,1.95823945]
[1752187566556,0.8475793,686.42,685.79,1.95823945]
[1752187566760,0.97691443,686.62,685.8,0.97748168]
[1752187566954,0.97691443,686.62,685.79,1.95823945]
[1752187566955,0.8468097,686.61,685.81,0.97748168]
[1752187567155,0.8468097,686.6,685.82,0.97748168]
[1752187567355,0.8468097,686.59,685.83,0.97748168]
[1752187567659,0.8468097,686.58,685.84,0.97748168]
[1752187567856,0.8468097,686.57,685.85,0.97748168]
[1752187568060,0.8468097,686.56,685.86,0.97748168]
[1752187568259,0.8468097,686.55,685.87,0.97748168]
[1752187568460,0.8468097,686.54,685.88,0.97748168]
[1752187568659,1.30951253,686.78,685.6,1.648]
[1752187568660,0.8468097,686.53,685.89,0.97748168]
[1752187568856,0.8468097,686.52,685.9,0.97748168]
[1752187569057,0.8468097,686.51,685.91,0.97748168]
[1752187569362,0.8468097,686.5,685.92,0.97580073]
[1752187569559,0.8468097,686.49,685.93,0.97580073]
[1752187569757,0.8468097,686.48,685.94,0.97580073]
[1752187569962,0.8468097,686.47,685.95,0.97580073]
[1752187570261,0.8468097,686.46,685.96,0.97580073]
[1752187570459,0.8468097,686.45,685.97,0.97580073]
[1752187570758,0.25337561,687.31,685.98,0.97580073]
[1752187570759,0.8468097,686.44,685.98,0.97580073]
[1752187570961,0.8468097,686.43,685.99,0.97580073]
[1752187571158,0.97691443,686.9,686.0,0.97580073]
[1752187571362,0.84568513,686.89,686.01,0.97580073]
[1752187571558,0.84568513,686.88,686.02,0.97580073]
[1752187571858,0.84568513,686.87,686.03,0.97580073]
[1752187572058,0.84568513,686.86,686.04,0.97580073]
[1752187572263,0.84568513,686.85,686.05,0.97580073]
[1752187572459,0.84568513,686.84,686.06,0.97580073]
[1752187572762,0.84568513,686.83,686.07,0.97580073]
[1752187572959,0.84568513,686.82,686.08,0.97580073]
[1752187573164,0.84568513,686.81,686.09,0.97580073]
[1752187573361,0.84568513,686.8,686.1,0.97580073]
[1752187573562,0.84568513,686.79,686.11,0.97580073]
[1752187573762,0.84568513,686.78,686.12,0.97580073]
[1752187573960,0.84568513,686.77,686.13,0.97580073]
[1752187574165,0.84568513,686.76,686.14,0.97580073]
[1752187574358,0.84568513,686.75,686.15,0.97580073]
[1752187574659,0.84568513,686.74,686.16,0.97580073]
[1752187574859,0.84568513,686.73,686.17,0.97580073]
[1752187575060,0.84568513,686.72,686.18,0.97580073]
[1752187575260,0.84568513,686.71,686.19,0.97580073]
[1752187575461,0.84568513,686.7,686.2,0.97580073]
[1752187575665,0.84568513,686.69,686.21,0.97580073]
[1752187575862,0.84568513,686.68,686.22,0.97580073]
[1752187576063,0.84568513,686.67,686.23,0.97580073]
[1752187576261,0.84568513,686.66,686.24,0.97580073]
[1752187576462,0.84568513,686.65,686.25,0.97580073]
[1752187576663,0.84568513,686.64,686.26,0.97580073]
[1752187576864,0.84568513,686.63,686.27,0.97580073]
[1752187577064,0.84568513,686.62,686.28,0.97580073]
[1752187577263,0.84568513,686.61,686.29,0.97580073]
[1752187577566,0.84568513,686.6,686.3,0.97580073]
[1752187577861,0.84568513,686.59,686.31,0.97580073]
[1752187578066,0.84568513,686.58,686.32,0.97427123]
[1752187578366,0.84568513,686.57,686.33,0.97427123]
[1752187578563,0.84568513,686.56,686.34,0.97427123]
[1752187578775,0.84568513,686.55,686.35,0.97427123]
[1752187578968,0.84568513,686.54,686.36,0.97427123]
[1752187579163,0.84568513,686.53,686.37,0.97427123]
[1752187579363,0.84568513,686.53,685.6,1.648]
[1752187579364,0.84568513,686.52,686.38,0.97427123]
[1752187579564,0.84568513,686.51,686.39,0.97385385]
[1752187579767,0.84568513,686.5,686.4,0.97385385]
[1752187579967,0.84568513,686.49,686.41,0.97385385]
[1752187580164,0.84568513,686.48,686.42,0.97385385]
[1752187580365,0.84568513,686.47,686.43,0.97385385]
[1752187580564,0.84568513,686.46,686.44,0.97385385]
[1752187580766,0.84568513,686.45,685.6,1.648]
[1752187580966,0.84568513,686.44,685.6,1.648]
[1752187581165,0.84568513,686.43,685.61,0.97311119]
[1752187581465,0.84568513,686.42,685.62,0.97311119]
[1752187581669,0.84568513,686.41,685.63,0.97311119]
[1752187581872,0.97691443,686.67,685.64,0.97311119]
[1752187582079,0.84395637,686.66,685.65,0.97311119]
[1752187582271,0.84395637,686.65,685.66,0.97311119]
[1752187582577,0.84395637,686.64,685.67,0.97311119]
[1752187582766,0.84395637,686.63,685.68,0.97311119]
[1752187582972,0.84395637,686.62,685.69,0.97311119]
[1752187583172,0.84395637,686.61,685.7,0.97311119]
[1752187583468,0.84395637,686.6,685.71,0.97311119]
[1752187583673,0.84395637,686.59,685.72,0.97311119]
[1752187583874,0.84395637,686.58,685.73,0.97311119]
[1752187584168,0.84395637,686.57,685.74,0.97287697]
[1752187584371,0.84395637,686.56,685.75,0.97287697]
[1752187584573,0.84395637,686.55,685.76,0.97287697]
[1752187584867,0.84395637,686.54,685.77,0.97287697]
[1752187585068,0.84395637,686.53,685.78,0.97287697]
[1752187585268,0.84395637,686.52,685.79,0.97287697]
[1752187585469,0.84395637,686.51,685.8,0.97287697]
[1752187585769,0.84395637,686.5,685.81,0.97287697]
[1752187585969,0.84395637,686.49,685.82,0.97287697]
[1752187586173,0.84395637,686.48,685.83,0.97287697]
[1752187586369,0.84395637,686.47,685.84,0.97287697]
[1752187586569,0.84395637,686.46,685.85,0.97287697]
[1752187586868,0.84395637,686.45,685.86,0.97287697]
[1752187587072,0.84395637,686.44,685.87,0.97287697]
[1752187587272,0.84395637,686.44,685.6,1.648]
[1752187587273,0.84395637,686.43,685.88,0.97287697]
[1752187587572,0.84395637,686.42,685.89,0.97287697]
[1752187587773,0.84395637,686.41,685.9,0.97287697]
[1752187587973,0.84395637,686.4,685.91,0.97287697]
[1752187588172,0.84395637,686.39,685.92,0.97287697]
[1752187588373,0.84395637,686.38,685.93,0.97287697]
[1752187588569,0.84395637,686.37,685.94,0.97287697]
[1752187588771,0.97691443,686.68,685.95,0.97287697]
[1752187589075,0.84401737,686.67,685.96,0.97287697]
[1752187589272,0.97691443,686.68,685.6,1.648]
[1752187589273,0.84401737,686.66,685.97,0.97287697]
[1752187589472,0.84401737,686.65,685.98,0.97287697]
[1752187589672,0.84401737,686.64,685.99,0.97287697]
[1752187589870,0.84401737,686.63,686.0,0.97267285]
[1752187590072,0.84401737,686.62,686.01,0.97267285]
[1752187590370,0.84401737,686.62,685.6,1.648]
[1752187590371,0.84401737,686.61,686.02,0.97267285]
[1752187590576,0.84401737,686.6,686.03,0.97267285]
[1752187590775,0.84401737,686.59,686.04,0.97267285]
[1752187590976,0.84401737,686.58,686.05,0.97267285]
[1752187591174,0.84401737,686.57,686.06,0.97267285]
[1752187591372,0.84401737,686.56,686.07,0.97267285]
[1752187591573,0.84401737,686.55,686.08,0.97267285]
[1752187591776,0.84401737,686.54,686.09,0.97267285]
[1752187591973,0.84401737,686.53,686.1,0.97267285]
[1752187592172,0.84401737,686.52,686.11,0.97267285]
[1752187592375,0.84401737,686.51,686.12,0.97267285]
[1752187592677,0.84401737,686.5,686.13,0.97267285]
[1752187592873,0.84401737,686.49,686.14,0.97267285]
[1752187593071,0.84401737,686.48,686.15,0.97267285]
[1752187593277,0.84401737,686.47,686.16,0.97267285]
[1752187593478,0.84401737,686.46,686.17,0.97267285]
[1752187593774,0.84401737,686.45,686.18,0.97267285]
[1752187593972,0.84401737,686.44,686.19,0.97267285]
[1752187594174,0.84401737,686.43,686.2,0.97267285]
[1752187594373,0.84401737,686.43,685.6,1.648]
[1752187594374,0.84401737,686.42,686.21,0.97267285]
[1752187594580,0.97691443,686.88,686.22,0.97267285]
[1752187594775,0.84423741,686.87,686.23,0.97267285]
[1752187594975,0.84423741,686.86,686.24,0.97267285]
[1752187595175,0.84423741,686.85,686.25,0.97267285]
[1752187595377,0.84423741,686.84,686.26,0.97267285]
[1752187595576,0.84423741,686.83,686.27,0.97267285]
[1752187595776,0.84423741,686.82,686.28,0.97279691]
[1752187595975,0.84423741,686.81,686.29,0.97279691]
[1752187596180,0.84423741,686.8,686.3,0.97279691]
[1752187596382,0.84423741,686.79,686.31,0.97279691]
[1752187596579,0.84423741,686.78,686.32,0.97279691]
[1752187596877,0.84423741,686.77,686.33,0.97279691]
[1752187597081,0.84423741,686.76,686.34,0.97279691]
[1752187597377,0.84423741,686.75,686.35,0.97291959]
[1752187597683,0.84423741,686.74,686.36,0.97291959]
[1752187597879,0.84423741,686.73,686.37,0.97291959]
[1752187598082,1.82115184,686.72,686.38,0.97291959]
[1752187598282,1.82115184,686.72,686.39,0.97291959]
[1752187598283,0.84423741,686.71,686.39,0.97291959]
[1752187598478,0.84423741,686.7,686.4,0.97291959]
[1752187598677,0.84423741,686.69,686.41,0.97319787]
[1752187598881,0.84423741,686.68,686.42,0.97319787]
[1752187599177,0.84423741,686.67,686.43,0.97319787]
[1752187599377,0.84423741,686.66,686.44,0.97319787]
[1752187599579,0.84423741,686.65,686.45,0.97319787]
[1752187599778,0.84423741,686.64,686.46,0.97319787]
[1752187599981,0.84423741,686.63,686.47,0.97319787]
[1752187600177,0.84423741,686.62,686.48,0.97319787]
[1752187600378,0.84423741,686.61,686.49,0.97319787]
[1752187600682,0.84423741,686.6,686.5,0.97319787]
[1752187600877,0.84423741,686.59,686.51,0.97319787]
[1752187601078,0.84423741,686.58,686.52,0.97319787]
[1752187601282,0.84423741,686.57,686.53,0.97319787]
[1752187601482,0.84423741,686.56,686.54,0.97319787]
[1752187601681,0.84423741,686.55,685.6,1.648]
[1752187601883,0.84423741,686.54,685.61,0.97310426]
[1752187602082,0.84423741,686.53,685.62,0.97310426]
[1752187602384,0.84423741,686.52,685.63,0.97310426]
[1752187602578,0.84423741,686.51,685.64,0.97310426]
[1752187602781,0.84423741,686.5,685.65,0.97310426]
[1752187602983,0.84423741,686.49,685.66,0.97310426]
[1752187603179,0.84423741,686.48,685.67,0.97310426]
[1752187603379,0.84423741,686.47,685.68,0.97310426]
[1752187603584,0.84423741,686.46,685.69,0.97310426]
[1752187603885,0.84423741,686.45,685.7,0.97310426]
[1752187604184,0.84423741,686.44,685.71,0.97310426]
[1752187604485,0.84423741,686.43,685.72,0.97310426]
[1752187604681,0.84423741,686.42,685.73,0.97310426]
[1752187604887,0.84423741,686.41,685.74,0.97310426]
[1752187605086,0.97691443,686.69,685.75,0.97310426]
[1752187605282,0.84513668,686.68,685.76,0.97310426]
[1752187605488,0.84513668,686.67,685.77,0.97310426]
[1752187605684,0.84513668,686.66,685.78,0.97310426]
[1752187605884,0.84513668,686.65,685.79,0.97310426]
[1752187606084,0.84513668,686.64,685.8,0.97310426]
[1752187606287,0.84513668,686.63,685.81,0.97310426]
[1752187606486,0.84513668,686.62,685.82,0.97310426]
[1752187606788,0.84513668,686.61,685.83,0.97310426]
[1752187606991,0.84513668,686.6,685.84,0.97310426]
[1752187607190,0.84513668,686.59,685.85,0.97310426]
[1752187607389,0.84513668,686.58,685.86,0.97310426]
[1752187607689,0.84513668,686.57,685.87,0.97310426]
[1752187607890,0.84513668,686.56,685.88,0.97310426]
[1752187608190,0.84513668,686.55,685.89,0.97310426]
[1752187608392,0.84513668,686.54,685.9,0.97310426]
[1752187608591,0.84513668,686.53,685.91,0.97310426]
[1752187608788,0.84513668,686.52,685.92,0.97310426]
[1752187608986,0.84513668,686.51,685.93,0.97310426]
[1752187609188,0.84513668,686.5,685.94,0.97310426]
[1752187609392,0.84513668,686.49,685.95,0.97310426]
[1752187609591,0.84513668,686.48,685.96,0.97310426]
[1752187609787,0.84513668,686.47,685.97,0.97310426]
[1752187609990,0.84513668,686.46,685.98,0.97310426]
[1752187610189,0.84513668,686.45,685.99,0.97310426]
[1752187610395,0.84513668,686.44,686.0,0.97310426]
[1752187610594,0.84513668,686.43,686.01,0.97310426]
[1752187610895,0.84513668,686.42,686.02,0.97310426]
[1752187611192,0.84513668,686.42,685.55,1.95823945]
[1752187611193,0.97691443,686.73,686.03,0.97310426]
[1752187611390,0.84617231,686.72,686.04,0.97310426]
[1752187611589,0.84617231,686.71,686.05,0.97310426]
[1752187611789,0.84617231,686.7,686.06,0.97310426]
[1752187611997,0.84617231,686.69,686.07,0.97310426]
[1752187612198,0.84617231,686.68,686.08,0.97310426]
[1752187612396,0.84617231,686.67,686.09,0.97310426]
[1752187612601,0.84617231,686.66,686.1,0.97310426]
[1752187612797,0.84617231,686.65,686.11,0.97310426]
[1752187612996,0.84617231,686.64,686.12,0.97310426]
[1752187613295,0.84617231,686.64,685.59,1.95823945]
[1752187613296,0.84617231,686.63,686.13,0.97310426]
[1752187613496,0.84617231,686.62,686.14,0.97310426]
[1752187613708,0.84617231,686.61,686.15,0.97310426]
[1752187613905,0.84617231,686.6,686.16,0.97310426]
[1752187614100,0.84617231,686.59,686.17,0.97310426]
[1752187614297,0.25337561,687.31,686.18,0.97310426]
[1752187614298,0.84617231,686.58,686.18,0.97310426]
[1752187614499,0.84617231,686.57,686.19,0.97310426]
[1752187614702,0.84617231,686.56,686.2,0.97310426]
[1752187614903,0.84617231,686.55,686.21,0.97310426]
[1752187615103,0.84617231,686.54,686.22,0.97310426]
[1752187615304,0.84617231,686.53,686.23,0.97310426]
[1752187615502,0.84617231,686.52,686.24,0.97310426]
[1752187615702,0.84617231,686.51,686.25,0.97310426]
[1752187615900,0.84617231,686.5,686.26,0.97310426]
[1752187616103,0.84617231,686.49,686.27,0.97310426]
[1752187616400,0.84617231,686.48,686.28,0.97310426]
[1752187616601,0.84617231,686.47,686.29,0.97310426]
[1752187616799,0.84617231,686.46,686.3,0.97310426]
[1752187617000,0.84617231,686.46,685.98,1.438]
[1752187617001,0.84617231,686.45,686.31,0.97310426]
[1752187617200,0.84617231,686.44,686.32,0.97310426]
[1752187617503,0.84617231,686.43,686.33,0.97310426]
[1752187617704,0.84617231,686.42,686.34,0.97310426]
[1752187617904,0.84617231,686.41,686.35,0.97310426]
[1752187618099,0.84617231,686.4,686.36,0.97310426]
[1752187618401,0.84617231,686.39,686.37,0.97310426]
[1752187618600,0.97691443,686.65,686.38,0.97310426]
[1752187618804,0.84740741,686.64,686.39,0.97310426]
[1752187618999,0.84740741,686.63,686.4,0.97310426]
[1752187619200,0.84740741,686.62,686.41,0.97310426]
[1752187619500,0.84740741,686.61,686.42,0.97310426]
[1752187619700,0.84740741,686.6,686.43,0.97310426]
[1752187619904,0.84740741,686.59,686.44,0.97310426]
[1752187620203,0.84740741,686.58,686.45,0.97310426]
[1752187620399,0.84740741,686.57,686.46,0.97310426]
[1752187620605,0.84740741,686.56,686.47,0.97310426]
[1752187620806,0.84740741,686.55,686.48,0.97310426]
[1752187621003,0.84740741,686.54,686.49,0.97310426]
[1752187621203,0.84740741,686.53,686.5,0.97310426]
[1752187621399,0.84740741,686.52,686.51,0.97310426]
[1752187626306,0.84740741,686.52,686.51,0.97804721]
[1752187632613,1.30951253,686.77,686.51,0.97804721]
[1752187632808,0.98106045,686.58,685.98,1.438]
[1752187633023,1.82849062,686.57,685.99,0.97778617]
[1752187633211,0.84743017,686.56,686.0,0.97778617]
[1752187633516,0.84743017,686.55,686.01,0.97778617]
[1752187633718,0.84743017,686.54,686.02,0.97778617]
[1752187633916,0.84743017,686.53,686.03,0.97778617]
[1752187634113,0.84743017,686.52,686.04,0.97778617]
[1752187634314,0.84743017,686.51,686.05,0.97778617]
[1752187634613,0.84743017,686.5,686.06,0.97778617]
[1752187634812,0.84743017,686.49,686.07,0.97778617]
[1752187635016,0.84743017,686.48,686.08,0.97778617]
[1752187635325,0.98106045,686.51,686.09,0.97778617]
[1752187635326,0.84743017,686.47,686.09,0.97778617]
[1752187635513,0.84743017,686.46,686.1,0.97778617]
[1752187635716,0.84743017,686.45,686.11,0.97778617]
[1752187635916,0.84743017,686.44,686.12,0.97778617]
[1752187636112,0.84743017,686.43,686.13,0.97778617]
[1752187636314,0.84743017,686.42,686.14,0.97778617]
[1752187636613,0.84743017,686.41,686.15,0.97778617]
[1752187636813,0.84743017,686.4,686.16,0.97778617]
[1752187637012,0.84743017,686.4,685.98,1.438]
[1752187637013,0.84743017,686.39,686.17,0.97778617]
[1752187637216,0.84743017,686.38,686.18,0.97778617]
[1752187637414,0.84743017,686.37,686.19,0.97778617]
[1752187637614,0.84743017,686.36,686.2,0.97778617]
[1752187637816,0.84743017,686.35,686.21,0.97778617]
[1752187638016,0.84743017,686.34,686.22,0.97778617]
[1752187638216,0.84743017,686.33,686.23,0.97778617]
[1752187638415,0.84743017,686.33,685.98,1.438]
[1752187638416,0.84743017,686.32,686.24,0.97778617]
[1752187638721,0.84743017,686.31,686.25,0.97778617]
[1752187638919,0.84743017,686.3,686.26,0.97778617]
[1752187639218,0.84743017,686.29,686.27,0.97778617]
[1752187639418,0.98106045,686.52,686.28,0.97778617]
[1752187639719,0.84691421,686.51,686.29,0.97778617]
[1752187639917,0.84691421,686.5,686.3,0.97778617]
[1752187640115,0.84691421,686.49,686.31,0.97778617]
[1752187640315,0.84691421,686.48,686.32,0.97778617]
[1752187640516,0.84691421,686.47,686.33,0.97778617]
[1752187640722,0.84691421,686.46,686.34,0.97778617]
[1752187640916,0.84691421,686.45,686.35,0.97778617]
[1752187641121,0.84691421,686.44,686.36,0.97778617]
[1752187641319,0.84691421,686.43,686.37,0.97778617]
[1752187641517,0.84691421,686.42,686.38,0.97778617]
[1752187641823,0.84691421,686.41,686.39,0.97778617]
[1752187642017,0.84691421,686.41,685.98,1.438]
[1752187642018,0.84691421,686.4,685.98,1.438]
[1752187642321,0.84691421,686.39,685.99,0.96940377]
[1752187642518,0.84691421,686.39,685.98,1.438]
[1752187642519,0.84691421,686.38,686.0,0.96940377]
[1752187642722,0.84691421,686.37,686.01,0.96940377]
[1752187643023,0.84691421,686.36,686.02,0.96940377]
[1752187643322,0.84691421,686.35,686.03,0.96940377]
[1752187643518,0.84691421,686.34,686.04,0.96940377]
[1752187643719,0.84691421,686.33,686.05,0.96940377]
[1752187643918,0.25337561,687.31,686.06,0.96940377]
[1752187643919,0.84691421,686.32,686.06,0.96940377]
[1752187644117,0.84691421,686.31,686.07,0.96940377]
[1752187644321,0.84691421,686.3,686.08,0.96940377]
[1752187644522,0.84691421,686.29,686.09,0.96940377]
[1752187644719,0.84691421,686.28,686.1,0.96940377]
[1752187644920,0.84691421,686.27,686.11,0.96940377]
[1752187645123,0.84691421,686.26,686.12,0.96940377]
[1752187645323,0.84691421,686.25,686.13,0.96940377]
[1752187645526,0.84691421,686.24,686.14,0.96940377]
[1752187645720,0.84691421,686.23,686.15,0.96940377]
[1752187645924,0.84691421,686.22,686.16,0.96940377]
[1752187646125,0.98106045,686.54,686.17,0.96940377]
[1752187646421,0.84600642,686.53,686.18,0.96940377]